{"text_format":"1","workbook":"xlsx","n_sheets":2,"sheets":["ورقة1","ESRI_MAPINFO_SHEET"],"not_rendered":{"charts":0,"images":2,"macros":1,"external_links":0,"defined_names":0,"comments":0,"pivot_tables":0},"unopened":[],"bounds":{"document_bytes":16777216,"sheet_cells":100000,"rows_first":2000,"rows_last":500,"rows_between":2000,"halvings":0,"cell_chars":16384,"cell_head_chars":4096},"cells_cut":0,"cells_raw":0,"read":"whole","date_system":"1900"}

{"sheet":"ورقة1","index":0,"n_rows":110,"n_cols":22,"rows_kept":110,"cut":false,"hidden":false,"merged":[[68,21,68,22],[69,21,69,22],[70,21,70,22],[71,21,71,22],[72,21,72,22],[78,21,78,22],[79,21,79,22],[80,21,80,22],[73,21,73,22],[74,21,74,22],[75,21,75,22],[76,21,76,22],[77,21,77,22],[64,21,64,22],[65,21,65,22],[66,21,66,22],[67,21,67,22],[58,21,58,22],[59,21,59,22],[60,21,60,22],[61,21,61,22],[62,21,62,22],[63,21,63,22],[53,21,53,22],[54,21,54,22],[55,21,55,22],[56,21,56,22],[57,21,57,22],[43,21,46,21],[49,21,49,22],[50,21,50,22],[51,21,51,22],[52,21,52,22],[14,1,15,1],[43,19,46,19],[43,20,46,20],[14,5,14,7],[14,2,14,4],[17,10,17,11],[25,10,25,11],[23,10,23,11],[22,10,22,11],[21,10,21,11],[28,1,28,2],[32,1,32,12],[18,10,18,11],[19,10,19,11],[20,10,20,11],[38,1,40,12],[16,10,16,11],[14,10,15,11],[14,12,15,12],[14,8,14,9],[12,8,12,10],[12,11,12,12],[1,12,2,12],[12,1,12,2],[13,1,13,2],[6,1,6,12],[3,12,4,12],[8,8,8,10],[9,11,9,12],[8,11,8,12],[11,8,11,10],[11,1,11,2],[9,8,9,10],[9,1,9,2],[8,1,8,2],[29,1,29,11],[31,1,31,12],[34,1,34,12],[24,10,24,11],[26,10,26,11],[27,10,27,11],[28,10,28,11],[36,1,37,2],[36,8,37,10],[36,11,37,12],[33,1,33,12],[35,1,35,2],[35,11,35,12],[35,8,35,10]]}
[]
[null,null,null,null,null,null,null,null,null,null,null,null,"تاريخ تقديم الطلب"]
[]
[null,null,null,null,null,null,null,null,null,null,null,null,"2022-11-01"]
[]
[]
[]
[]
[]
[]
[]
[]
[]
[]
[null,"التاريخ","من",null,null,"إلى",null,null,"التوقيت ",null,"السبب",null,"عدد الساعات"]
[null,null,"دقيقة",null,"ساعة","دقيقة",null,"ساعة","من ","الى"]
[null,"2022-11-12",15,{"$f":"IF(OR(C17<>\"\",E17<>\"\"),\":\",\"\")","v":":"},17,16,{"$f":"IF(OR(F17<>\"\",H17<>\"\"),\":\",\"\")","v":":"},18,{"$f":"IF(OR(C17=\"\",E17=\"\"),\"\",TIME(E17,C17,0))","v":"17:15:00"},{"$f":"IF(OR(F17=\"\",H17=\"\"),\"\",TIME(H17,F17,0))","v":"18:16:00"},"شرح السبب  هنا",null,{"$f":"IF(J17>=I17,J17-I17,1+J17-I17)","v":"01:01:00"}]
[null,"2022-11-16",15,{"$f":"IF(OR(C18<>\"\",E18<>\"\"),\":\",\"\")","v":":"},20,45,{"$f":"IF(OR(F18<>\"\",H18<>\"\"),\":\",\"\")","v":":"},22,{"$f":"IF(OR(C18=\"\",E18=\"\"),\"\",TIME(E18,C18,0))","v":"20:15:00"},{"$f":"IF(OR(F18=\"\",H18=\"\"),\"\",TIME(H18,F18,0))","v":"22:45:00"},"شرح السبب  هنا",null,{"$f":"IF(J18>=I18,J18-I18,1+J18-I18)","v":"02:30:00"}]
[null,"2022-11-27",45,":",13,0,":",16,"13:45:00","16:00:00","شرح السبب  هنا",null,"02:15:00"]
[null,"2022-11-16",0,":",20,45,":",0,"20:00:00","00:45:00","شرح السبب  هنا",null,"04:45:00"]
[null,"2022-11-05",15,":",21,15,":",23,"21:15:00","23:15:00","شرح السبب  هنا",null,"02:00:00"]
[null,"2022-11-16",10,":",21,15,":",0,"21:10:00","00:15:00","شرح السبب  هنا",null,"03:05:00"]
[null,"2022-11-16",0,":",17,0,":",18,"17:00:00","18:00:00",null,null,"01:00:00"]
[null,"2022-11-16",0,":",17,0,":",18,"17:00:00","18:00:00",null,null,"01:00:00"]
[null,"2022-11-03",15,":",17,30,":",21,"17:15:00","21:30:00",null,null,"04:15:00"]
[null,"2022-11-16",45,":",16,0,":",21,"16:45:00","21:00:00",null,null,"04:15:00"]
[null,"2022-11-16",30,":",18,0,":",21,"18:30:00","21:00:00",null,null,"02:30:00"]
[null,"2022-11-16",0,":",16,0,":",17,"16:00:00","17:00:00",null,null,"01:00:00"]
[]
[null,"مجموع ساعات العمل الإضافية       ",null,null,null,null,null,null,null,null,null,null,{"$f":"SUM(M17:M28)","v":1.2333333333333332}]
[]
[]
[]
[]
[]
[]
[]
[]
[]
[]
[]
[]
[]
[null,null,null,null,null,null,null,null,null,null,null,null,null,null,null,null,null,null,null,"شهر  تقديم الطلب","سنة تقديم الطلب","عدد أيام الشهر"]
[]
[]
[]
[null,null,null,null,null,null,null,null,null,null,null,null,null,null,null,null,null,null,null,{"$f":"MONTH(M4)","v":11},{"$f":"YEAR(M4)","v":2022},{"$f":"DAY(DATE($U$48,$T$48+1,0))","v":30}]
[]
[null,null,null,null,null,null,null,null,null,null,null,null,null,null,null,null,null,null,null,"ساعة","دقيقة","التاريخ"]
[null,null,null,null,null,null,null,null,null,null,null,null,null,null,null,null,null,null,null,0,0,{"$f":"IF($U51+1<=$V$48,DATE($U$48,$T$48,$U51+1),\"\")","v":"2022-11-01"}]
[null,null,null,null,null,null,null,null,null,null,null,null,null,null,null,null,null,null,null,1,1,"2022-11-02"]
[null,null,null,null,null,null,null,null,null,null,null,null,null,null,null,null,null,null,null,2,2,"2022-11-03"]
[null,null,null,null,null,null,null,null,null,null,null,null,null,null,null,null,null,null,null,3,3,"2022-11-04"]
[null,null,null,null,null,null,null,null,null,null,null,null,null,null,null,null,null,null,null,4,4,"2022-11-05"]
[null,null,null,null,null,null,null,null,null,null,null,null,null,null,null,null,null,null,null,5,5,"2022-11-06"]
[null,null,null,null,null,null,null,null,null,null,null,null,null,null,null,null,null,null,null,6,6,"2022-11-07"]
[null,null,null,null,null,null,null,null,null,null,null,null,null,null,null,null,null,null,null,7,7,"2022-11-08"]
[null,null,null,null,null,null,null,null,null,null,null,null,null,null,null,null,null,null,null,8,8,"2022-11-09"]
[null,null,null,null,null,null,null,null,null,null,null,null,null,null,null,null,null,null,null,9,9,"2022-11-10"]
[null,null,null,null,null,null,null,null,null,null,null,null,null,null,null,null,null,null,null,10,10,"2022-11-11"]
[null,null,null,null,null,null,null,null,null,null,null,null,null,null,null,null,null,null,null,11,11,"2022-11-12"]
[null,null,null,null,null,null,null,null,null,null,null,null,null,null,null,null,null,null,null,12,12,"2022-11-13"]
[null,null,null,null,null,null,null,null,null,null,null,null,null,null,null,null,null,null,null,13,13,"2022-11-14"]
[null,null,null,null,null,null,null,null,null,null,null,null,null,null,null,null,null,null,null,14,14,"2022-11-15"]
[null,null,null,null,null,null,null,null,null,null,null,null,null,null,null,null,null,null,null,15,15,"2022-11-16"]
[null,null,null,null,null,null,null,null,null,null,null,null,null,null,null,null,null,null,null,16,16,"2022-11-17"]
[null,null,null,null,null,null,null,null,null,null,null,null,null,null,null,null,null,null,null,17,17,"2022-11-18"]
[null,null,null,null,null,null,null,null,null,null,null,null,null,null,null,null,null,null,null,18,18,"2022-11-19"]
[null,null,null,null,null,null,null,null,null,null,null,null,null,null,null,null,null,null,null,19,19,"2022-11-20"]
[null,null,null,null,null,null,null,null,null,null,null,null,null,null,null,null,null,null,null,20,20,"2022-11-21"]
[null,null,null,null,null,null,null,null,null,null,null,null,null,null,null,null,null,null,null,21,21,"2022-11-22"]
[null,null,null,null,null,null,null,null,null,null,null,null,null,null,null,null,null,null,null,22,22,"2022-11-23"]
[null,null,null,null,null,null,null,null,null,null,null,null,null,null,null,null,null,null,null,23,23,"2022-11-24"]
[null,null,null,null,null,null,null,null,null,null,null,null,null,null,null,null,null,null,null,null,24,"2022-11-25"]
[null,null,null,null,null,null,null,null,null,null,null,null,null,null,null,null,null,null,null,null,25,"2022-11-26"]
[null,null,null,null,null,null,null,null,null,null,null,null,null,null,null,null,null,null,null,null,26,"2022-11-27"]
[null,null,null,null,null,null,null,null,null,null,null,null,null,null,null,null,null,null,null,null,27,"2022-11-28"]
[null,null,null,null,null,null,null,null,null,null,null,null,null,null,null,null,null,null,null,null,28,"2022-11-29"]
[null,null,null,null,null,null,null,null,null,null,null,null,null,null,null,null,null,null,null,null,29,"2022-11-30"]
[null,null,null,null,null,null,null,null,null,null,null,null,null,null,null,null,null,null,null,null,30,""]
[null,null,null,null,null,null,null,null,null,null,null,null,null,null,null,null,null,null,null,null,31]
[null,null,null,null,null,null,null,null,null,null,null,null,null,null,null,null,null,null,null,null,32]
[null,null,null,null,null,null,null,null,null,null,null,null,null,null,null,null,null,null,null,null,33]
[null,null,null,null,null,null,null,null,null,null,null,null,null,null,null,null,null,null,null,null,34]
[null,null,null,null,null,null,null,null,null,null,null,null,null,null,null,null,null,null,null,null,35]
[null,null,null,null,null,null,null,null,null,null,null,null,null,null,null,null,null,null,null,null,36]
[null,null,null,null,null,null,null,null,null,null,null,null,null,null,null,null,null,null,null,null,37]
[null,null,null,null,null,null,null,null,null,null,null,null,null,null,null,null,null,null,null,null,38]
[null,null,null,null,null,null,null,null,null,null,null,null,null,null,null,null,null,null,null,null,39]
[null,null,null,null,null,null,null,null,null,null,null,null,null,null,null,null,null,null,null,null,40]
[null,null,null,null,null,null,null,null,null,null,null,null,null,null,null,null,null,null,null,null,41]
[null,null,null,null,null,null,null,null,null,null,null,null,null,null,null,null,null,null,null,null,42]
[null,null,null,null,null,null,null,null,null,null,null,null,null,null,null,null,null,null,null,null,43]
[null,null,null,null,null,null,null,null,null,null,null,null,null,null,null,null,null,null,null,null,44]
[null,null,null,null,null,null,null,null,null,null,null,null,null,null,null,null,null,null,null,null,45]
[null,null,null,null,null,null,null,null,null,null,null,null,null,null,null,null,null,null,null,null,46]
[null,null,null,null,null,null,null,null,null,null,null,null,null,null,null,null,null,null,null,null,47]
[null,null,null,null,null,null,null,null,null,null,null,null,null,null,null,null,null,null,null,null,48]
[null,null,null,null,null,null,null,null,null,null,null,null,null,null,null,null,null,null,null,null,49]
[null,null,null,null,null,null,null,null,null,null,null,null,null,null,null,null,null,null,null,null,50]
[null,null,null,null,null,null,null,null,null,null,null,null,null,null,null,null,null,null,null,null,51]
[null,null,null,null,null,null,null,null,null,null,null,null,null,null,null,null,null,null,null,null,52]
[null,null,null,null,null,null,null,null,null,null,null,null,null,null,null,null,null,null,null,null,53]
[null,null,null,null,null,null,null,null,null,null,null,null,null,null,null,null,null,null,null,null,54]
[null,null,null,null,null,null,null,null,null,null,null,null,null,null,null,null,null,null,null,null,55]
[null,null,null,null,null,null,null,null,null,null,null,null,null,null,null,null,null,null,null,null,56]
[null,null,null,null,null,null,null,null,null,null,null,null,null,null,null,null,null,null,null,null,57]
[null,null,null,null,null,null,null,null,null,null,null,null,null,null,null,null,null,null,null,null,58]
[null,null,null,null,null,null,null,null,null,null,null,null,null,null,null,null,null,null,null,null,59]

{"sheet":"ESRI_MAPINFO_SHEET","index":1,"n_rows":0,"n_cols":0,"rows_kept":0,"cut":false,"hidden":true,"merged":[]}